bitfinex/quotes_BTCUSD_20241123
["timestamp","ask_amount","ask_price","bid_price","bid_amount"]
[1732348862578,0.0779,98191.0,98168.0,0.0471]
[1732348865091,0.0779,98191.0,98168.0,0.04037223]
[1732348865306,0.0779,98191.0,98169.0,0.049]
[1732348868518,0.0779,98191.0,98169.0,0.09053242]
[1732348868641,0.00127298,98204.0,98169.0,0.09053242]
[1732348868843,0.1,98205.0,98169.0,0.09053242]
[1732348869466,0.1,98205.0,98170.0,0.1267]
[1732348869721,0.1,98205.0,98171.0,0.05001836]
[1732348869897,0.1,98205.0,98172.0,0.049]
[1732348870110,0.01741012,98219.0,98173.0,0.049]
[1732348870338,0.01741012,98219.0,98174.0,0.049]
[1732348870554,0.01741012,98219.0,98176.0,0.049]
[1732348870681,0.01741012,98219.0,98175.0,0.0777]
[1732348870901,0.01741012,98219.0,98177.0,0.049]
[1732348871124,0.01741012,98219.0,98178.0,0.05001823]
[1732348871729,0.0816,98217.0,98180.0,0.049]
[1732348872055,0.0816,98217.0,98182.0,0.049]
[1732348872268,0.0816,98217.0,98184.0,0.049]
[1732348872501,0.0816,98217.0,98186.0,0.049]
[1732348872672,0.0816,98217.0,98187.0,0.00101821]
[1732348872825,0.0816,98217.0,98188.0,0.049]
[1732348873217,0.0816,98217.0,98189.0,0.00101821]
[1732348876193,0.072823,98217.0,98189.0,0.00101821]
[1732348876390,0.05661984,98217.0,98189.0,0.00101821]
[1732348876735,0.05748044,98217.0,98189.0,0.00101821]
[1732348877776,0.05748044,98217.0,98190.0,0.0777]
[1732348877976,0.05748044,98217.0,98191.0,0.0010182]
[1732348878144,0.05241696,98217.0,98192.0,0.0010182]
[1732348878351,0.05241696,98217.0,98191.0,0.0010182]
[1732348878574,0.0362138,98217.0,98191.0,0.0010182]
[1732348885731,0.0362138,98217.0,98192.0,0.0487]
[1732348885866,0.0362138,98217.0,98193.0,0.00101821]
[1732348888610,0.0362138,98217.0,98200.0,0.05458243]
[1732348888745,0.0362138,98217.0,98201.0,0.00101821]
[1732348890541,0.0362138,98217.0,98192.0,0.0487]
[1732348890915,0.0362138,98217.0,98193.0,0.00101821]
[1732348892234,0.00100012,98216.0,98193.0,0.00101821]
[1732348893149,0.00100012,98216.0,98194.0,0.040558]
[1732348893354,0.00100012,98216.0,98195.0,0.00101821]
[1732348896143,0.0608602,98223.0,98194.0,0.040558]
[1732348896144,0.0824,98238.0,98220.0,0.10916486]
[1732348896384,0.05215672,98243.0,98200.0,0.05458243]
[1732348896385,0.00063712,98215.0,98200.0,0.0468]
[1732348896603,0.00063712,98214.0,98200.0,0.0468]
[1732348896826,0.00063712,98208.0,98200.0,0.0468]
[1732348897053,0.00063712,98215.0,98199.0,0.05024268]
[1732348897289,0.0824,98220.0,98199.0,0.05024268]
[1732348897290,0.0824,98220.0,98200.0,0.00101815]
[1732348897543,0.00063712,98222.0,98200.0,0.05560058]
[1732348897774,0.00063712,98222.0,98201.0,0.1282]
[1732348897986,0.0498,98230.0,98202.0,0.0010181]
[1732348898208,0.0498,98230.0,98201.0,0.1282]
[1732348898209,0.0498,98230.0,98203.0,0.0010181]
[1732348898444,0.0498,98230.0,98202.0,0.00101807]
[1732348898649,0.0498,98230.0,98203.0,0.00101808]
[1732348898863,0.0498,98230.0,98202.0,0.00101808]
[1732348899081,0.05458243,98250.0,98202.0,0.00101808]
[1732348899313,0.05458243,98250.0,98203.0,0.0466]
[1732348899519,0.05458243,98250.0,98204.0,0.00101802]
[1732348899753,0.05458243,98240.0,98203.0,0.0466]
[1732348900194,0.0008602,98222.0,98204.0,0.00101802]
[1732348900402,0.0008602,98222.0,98211.0,0.0466]
[1732348900638,0.0008602,98222.0,98212.0,0.00101802]
[1732348906462,0.0008602,98222.0,98212.0,0.04255258]
[1732348906694,0.0008602,98222.0,98212.0,0.00101802]
[1732348908148,0.01233493,98236.0,98212.0,0.00101802]
[1732348911606,0.01233493,98236.0,98212.0,0.00273742]
[1732348911988,0.05458243,98230.0,98212.0,0.00273742]
[1732348912211,0.05458243,98240.0,98212.0,0.00273742]
[1732348912212,0.05458243,98222.0,98212.0,0.0017194]
[1732348912422,0.1318,98229.0,98212.0,0.0017194]
[1732348913888,0.05458243,98222.0,98212.0,0.0017194]
[1732348914094,0.1318,98229.0,98212.0,0.0017194]
[1732348918019,0.0010181,98228.0,98182.0,0.05065601]
[1732348918253,0.05458243,98220.0,98207.0,0.040478]
[1732348918420,0.0470181,98219.0,98207.0,0.040478]
[1732348918630,0.0470181,98219.0,98142.0,0.003721]
[1732348918631,0.0806,98216.0,98181.0,0.05067659]
[1732348918822,0.0010181,98215.0,98183.0,0.040559]
[1732348920801,0.0010181,98215.0,98183.0,0.08262906]
[1732348921021,0.0010181,98215.0,98184.0,0.1253]
[1732348921855,0.0010181,98215.0,98180.0,0.05458243]
[1732348922061,0.0806,98213.0,98180.0,0.05458243]
[1732348922266,0.0806,98211.0,98185.0,0.04056]
[1732348922471,0.0806,98208.0,98185.0,0.04056]
[1732348922689,0.0477,98205.0,98171.0,0.023]
[1732348922943,0.0806,98198.0,98170.0,0.05458243]
[1732348923151,0.0806,98198.0,98172.0,0.040563]
[1732348923389,0.0816181,98198.0,98172.0,0.040563]
[1732348923629,0.0806,98198.0,98172.0,0.040563]
[1732348923860,0.0816181,98198.0,98172.0,0.040563]
[1732348924090,0.0806,98196.0,98172.0,0.040563]
[1732348924350,0.0806,98196.0,98160.0,0.10475801]
[1732348924351,0.0806,98196.0,98183.0,0.0017194]
[1732348924582,0.0010181,98195.0,98183.0,0.0017194]
[1732348926073,0.0010181,98195.0,98183.0,0.04219248]
[1732348926757,0.0806,98194.0,98183.0,0.04219248]
[1732348926979,0.0010181,98193.0,98183.0,0.04219248]
[1732348927199,0.0477,98192.0,98183.0,0.04219248]
[1732348927408,0.0806,98191.0,98183.0,0.04219248]
[1732348928118,0.0010181,98190.0,98183.0,0.04219248]
[1732348928352,0.0461,98188.0,98183.0,0.04219248]
[1732348928550,0.0768181,98187.0,98183.0,0.04219248]
[1732348929828,0.0758,98187.0,98183.0,0.04219248]
[1732348932280,0.1,98227.0,98183.0,0.04219248]
[1732348932510,0.05461026,98200.0,98183.0,0.04219248]
[1732348934281,0.05461026,98210.0,98183.0,0.04219248]
[1732348934701,0.05261026,98210.0,98183.0,0.04219248]
[1732348935345,0.0758,98198.0,98183.0,0.04219248]
[1732348939717,0.05461026,98193.0,98183.0,0.04219248]
[1732348939928,0.0494,98191.0,98183.0,0.04219248]
[1732348940565,0.0772,98190.0,98183.0,0.04219248]
[1732348945459,0.0494,98189.0,98183.0,0.04219248]
[1732348945688,0.0772,98188.0,98183.0,0.04219248]
[1732348967695,0.00101859,98187.0,98143.0,0.05065619]
[1732348967909,0.00101859,98187.0,98156.0,0.04158253]
[1732348968141,0.00101859,98187.0,98157.0,0.00101862]
[1732348968591,0.00101859,98187.0,98146.0,0.00101862]
[1732348968809,0.00101859,98187.0,98146.0,0.02401862]
[1732348969484,0.00101859,98187.0,98146.0,0.00101862]
[1732348970426,0.045,98186.0,98146.0,0.00101862]
[1732348970614,0.07901859,98185.0,98146.0,0.00101862]
[1732348970869,0.045,98184.0,98148.0,0.0487]
[1732348971087,0.045,98184.0,98147.0,0.05491862]
[1732348971088,0.07901859,98183.0,98150.0,0.0487]
[1732348972645,0.045,98179.0,98150.0,0.0487]
[1732348972888,0.07901859,98178.0,98150.0,0.0487]
[1732348975419,0.07901859,98178.0,98151.0,0.00101862]
[1732348980614,0.0465,98177.0,98151.0,0.00101862]
[1732348980824,0.07911859,98176.0,98151.0,0.00101862]
[1732348983674,0.0458,98175.0,98151.0,0.00101862]
[1732348983878,0.0797,98174.0,98151.0,0.00101862]
[1732348984084,0.00101859,98173.0,98151.0,0.00101862]
[1732348986040,0.0458,98172.0,98151.0,0.00101862]
[1732348986297,0.1255,98172.0,98151.0,0.00101862]
[1732348993383,0.0822,98171.0,98151.0,0.00101862]
[1732348993595,0.05470758,98171.0,98151.0,0.00101862]
[1732348995718,0.0475,98170.0,98151.0,0.00101862]
[1732348996363,0.0475,98170.0,98152.0,0.00101863]
[1732348996589,0.0822,98169.0,98146.0,0.00101863]
[1732348997907,0.0531855,98169.0,98146.0,0.00101863]
[1732348998348,0.0475,98168.0,98128.0,0.0504724]
[1732348998582,0.0475,98168.0,98136.0,0.023]
[1732348998802,0.0475,98168.0,98137.0,0.00050939]
[1732348999239,0.0475,98168.0,98130.0,0.05067393]
[1732348999454,0.0475,98168.0,98131.0,0.00050939]
[1732349000735,0.0475,98168.0,98132.0,0.05068663]
[1732349001003,0.0475,98168.0,98134.0,0.05017707]
[1732349001222,0.0531855,98169.0,98129.0,0.023]
[1732349001223,0.02785712,98169.0,98136.0,0.0505333]
[1732349001438,0.02785712,98169.0,98137.0,0.00050938]
[1732349001674,0.02785712,98169.0,98138.0,0.05077172]
[1732349003008,0.02785712,98169.0,98140.0,0.05064445]
[1732349003239,0.02785712,98169.0,98142.0,0.023]
[1732349003450,0.0012733,98185.0,98143.0,0.00050938]
[1732349003688,0.0012733,98185.0,98144.0,0.023]
[1732349003905,0.0012733,98185.0,98145.0,0.00050938]
[1732349004339,0.0476,98184.0,98145.0,0.00050938]
[1732349004521,0.0488733,98183.0,98145.0,0.00050938]
[1732349005859,0.0488733,98183.0,98138.0,0.05084791]
[1732349006504,0.0476,98181.0,98138.0,0.05084791]
[1732349006725,0.04904426,98186.0,98138.0,0.05084791]
[1732349006726,0.0476,98179.0,98138.0,0.05084791]
[1732349006948,0.0782,98176.0,98138.0,0.05084791]
[1732349007176,0.04904426,98186.0,98138.0,0.05084791]
[1732349007177,0.0476,98172.0,98138.0,0.05084791]
[1732349007407,0.04904426,98186.0,98138.0,0.05084791]
[1732349007408,0.0476,98170.0,98138.0,0.05084791]
[1732349007641,0.0476,98168.0,98138.0,0.05084791]
[1732349008309,0.04310489,98168.0,98139.0,0.023]
[1732349008525,0.04310489,98168.0,98140.0,0.05010421]
[1732349008791,0.04310489,98168.0,98136.0,0.05058493]
[1732349009202,0.0782,98167.0,98136.0,0.05058493]
[1732349009422,0.0782,98167.0,98145.0,0.0017204]
[1732349011354,0.0476,98166.0,98145.0,0.04350816]
[1732349011573,0.0782,98163.0,98145.0,0.0017204]
[1732349011803,0.0476,98162.0,98145.0,0.0017204]
[1732349012032,0.0476,98160.0,98145.0,0.0017204]
[1732349013861,0.04059181,98160.0,98145.0,0.0017204]
[1732349017385,0.04059181,98160.0,98113.0,0.32572]
[1732349017386,0.04059181,98160.0,98120.0,0.05025]
[1732349017601,0.04059181,98160.0,98122.0,0.05083643]
[1732349017808,0.0465,98158.0,98129.0,0.05038826]
[1732349018013,0.0465,98158.0,98122.0,0.05083643]
[1732349018235,0.0465,98158.0,98124.0,0.07309492]
[1732349019504,0.049,98156.0,98124.0,0.07309492]
[1732349020095,0.049,98154.0,98124.0,0.07309492]
[1732349020339,0.049,98154.0,98125.0,0.0499]
[1732349021253,0.049,98154.0,98145.0,0.0017204]
[1732349021694,0.0788,98153.0,98145.0,0.0017204]
[1732349021922,0.049,98152.0,98145.0,0.0017204]
[1732349022373,0.0788,98153.0,98145.0,0.0017204]
[1732349022638,0.049,98152.0,98118.0,0.05087684]
[1732349022846,0.1278,98151.0,98119.0,0.040577]
[1732349023275,0.0224,98150.0,98115.0,0.0347]
[1732349023487,0.0224,98150.0,98117.0,0.0347]
[1732349023706,0.0077,98150.0,98119.0,0.0494]
[1732349024397,0.0788,98151.0,98119.0,0.0494]
[1732349024640,0.0788,98151.0,98121.0,0.0499]
[1732349024871,0.0788,98151.0,98122.0,0.05045658]
[1732349025103,0.0788,98151.0,98124.0,0.0499]
[1732349025104,0.05732,98151.0,98124.0,0.0499]
[1732349025307,0.02148001,98151.0,98125.0,0.05014698]
[1732349025720,0.0008602,98168.0,98125.0,0.05014698]
[1732349027337,0.0471,98167.0,98125.0,0.05014698]
[1732349027542,0.0471,98165.0,98125.0,0.05014698]
[1732349028642,0.0793,98162.0,98125.0,0.05014698]
[1732349029025,0.0793,98160.0,98125.0,0.05014698]
[1732349029239,0.0793,98158.0,98125.0,0.05014698]
[1732349029400,0.0793,98154.0,98125.0,0.05014698]
[1732349029601,0.0008602,98168.0,98125.0,0.05014698]
[1732349029602,0.0793,98152.0,98125.0,0.05014698]
[1732349029815,0.0793,98150.0,98125.0,0.05014698]
[1732349029986,0.0471,98146.0,98125.0,0.05014698]
[1732349030184,0.00213364,98168.0,98125.0,0.05014698]
[1732349030938,0.00213364,98168.0,98124.0,0.04057278]
[1732349030939,0.00213364,98168.0,98127.0,0.05096559]
[1732349031151,0.0008602,98168.0,98127.0,0.05096559]
[1732349031407,0.00127339,98167.0,98127.0,0.05096559]
[1732349031794,0.00127339,98167.0,98126.0,0.0499]
[1732349032001,0.00127339,98167.0,98127.0,0.05096559]
[1732349033316,0.1264,98166.0,98127.0,0.05096559]
[1732349033533,0.0471,98162.0,98127.0,0.05096559]
[1732349033654,0.0471,98160.0,98127.0,0.05096559]
[1732349033875,0.0471,98156.0,98127.0,0.05096559]
[1732349034087,0.0471,98154.0,98127.0,0.05096559]
[1732349034311,0.0471,98152.0,98127.0,0.05096559]
[1732349034521,0.0471,98150.0,98127.0,0.05096559]
[1732349034964,0.0398059,98150.0,98127.0,0.05096559]
[1732349035403,1e-08,98150.0,98127.0,0.05096559]
[1732349038582,0.0474,98149.0,98127.0,0.05096559]
[1732349039535,0.05896054,98151.0,98127.0,0.1267]
[1732349039735,0.04406054,98151.0,98129.0,0.0464]
[1732349040057,0.04406054,98151.0,98133.0,0.0464]
[1732349040353,0.02916054,98151.0,98133.0,0.0464]
[1732349040578,0.01926055,98151.0,98133.0,0.0464]
[1732349040976,0.00989999,98151.0,98133.0,0.0464]
[1732349041132,1e-08,98151.0,98133.0,0.0464]
[1732349044308,0.0816,98150.0,98133.0,0.0464]
[1732349044952,0.0716,98150.0,98133.0,0.0464]
[1732349045621,0.0616,98150.0,98133.0,0.0464]
[1732349046285,0.0616,98150.0,98134.0,0.023]
[1732349046286,0.0467,98150.0,98134.0,0.023]
[1732349046758,0.03234,98150.0,98134.0,0.023]
[1732349048803,0.03234,98150.0,98134.0,0.06424519]
[1732349049035,0.03234,98150.0,98134.0,0.023]
[1732349052318,1e-08,98151.0,98134.0,0.023]
[1732349054871,1e-08,98151.0,98136.0,0.023]
[1732349055079,1e-08,98151.0,98138.0,0.023]
[1732349055311,1e-08,98151.0,98136.0,0.023]
[1732349056175,1e-08,98151.0,98137.0,0.0464]
[1732349057718,1e-08,98151.0,98138.0,0.023]
[1732349057897,0.00086041,98151.0,98138.0,0.023]
[1732349062288,0.00086041,98151.0,98139.0,0.30762228]
[1732349062862,0.00086041,98151.0,98140.0,0.023]
[1732349063348,0.00086041,98151.0,98139.0,0.30762228]
[1732349065667,0.00086041,98151.0,98138.0,0.023]
[1732349068813,0.04081532,98157.0,98138.0,0.023]
[1732349069024,0.03430357,98157.0,98138.0,0.023]
[1732349069529,0.02818273,98157.0,98138.0,0.023]
[1732349071240,0.02904313,98157.0,98138.0,0.023]
[1732349072522,0.00213389,98157.0,98138.0,0.023]
[1732349072739,0.07973389,98158.0,98139.0,0.0498]
[1732349072952,0.07973389,98158.0,98140.0,0.023]
[1732349073160,0.00127311,98157.0,98140.0,0.023]
[1732349076300,0.0763,98165.0,98141.0,0.0498]
[1732349076488,0.1,98186.0,98143.0,0.0804]
[1732349076752,0.1,98186.0,98146.0,0.023]
[1732349076989,0.05461026,98180.0,98150.0,0.0804]
[1732349077198,0.05461026,98180.0,98153.0,0.0804]
[1732349077428,0.05461026,98180.0,98154.0,0.05081867]
[1732349079124,0.00101867,98179.0,98124.0,0.023]
[1732349079340,0.00101867,98179.0,98125.0,0.00101867]
[1732349079592,0.05461026,98180.0,98126.0,0.05076922]
[1732349079801,0.00101867,98179.0,98128.0,0.05014969]
[1732349080016,0.00101867,98179.0,98129.0,0.00101867]
[1732349080440,0.00101867,98179.0,98130.0,0.05016732]
[1732349080657,0.00101867,98179.0,98131.0,0.00101867]
[1732349080931,0.00101867,98179.0,98131.0,0.0269385]
[1732349081162,0.00101867,98179.0,98133.0,0.023]
[1732349081586,0.0483,98178.0,98134.0,0.05005811]
[1732349081824,0.00101867,98177.0,98137.0,0.023]
[1732349082035,0.079,98176.0,98140.0,0.1242]
[1732349082245,0.00101867,98175.0,98142.0,0.0458]
[1732349082482,0.00101867,98175.0,98144.0,0.0458]
[1732349082686,0.00101867,98175.0,98146.0,0.0458]
[1732349082894,0.00101867,98175.0,98147.0,0.00101867]
[1732349084491,0.0483,98168.0,98146.0,0.0458]
[1732349084949,0.04692163,98168.0,98146.0,0.0458]
[1732349085823,0.04692163,98168.0,98122.0,0.023]
[1732349086058,0.04692163,98168.0,98138.0,0.05044411]
[1732349086892,0.04692163,98168.0,98139.0,0.00101868]
[1732349087771,0.01545192,98168.0,98140.0,0.0458]
[1732349087977,0.01545192,98168.0,98141.0,0.00101868]
[1732349088836,0.01545192,98168.0,98142.0,0.0758]
[1732349089054,0.01545192,98168.0,98143.0,0.00101868]
[1732349091662,0.0794,98165.0,98140.0,0.08732719]
[1732349092976,0.020704,98165.0,98140.0,0.08732719]
[1732349095542,0.0215643,98165.0,98140.0,0.08732719]
[1732349095740,0.0215643,98165.0,98141.0,0.00101872]
[1732349096158,0.0215643,98165.0,98142.0,0.1221]
[1732349096377,0.0215643,98165.0,98143.0,0.00101872]
[1732349096601,0.00187897,98179.0,98144.0,0.05919618]
[1732349096802,0.00101867,98178.0,98146.0,0.0463]
[1732349097016,0.00101867,98178.0,98148.0,0.0463]
[1732349097188,0.00101867,98178.0,98149.0,0.00101868]
[1732349099293,0.00101867,98178.0,98150.0,0.0454]
[1732349099506,0.1257,98177.0,98151.0,0.00101868]
[1732349099717,0.00101867,98176.0,98151.0,0.00101868]
[1732349100608,0.12671867,98177.0,98151.0,0.00101868]
[1732349100815,0.00101867,98176.0,98151.0,0.00101868]
[1732349101043,0.1257,98177.0,98151.0,0.00101868]
[1732349101249,0.00101867,98176.0,98151.0,0.00101868]
[1732349101445,0.00101867,98176.0,98152.0,0.0802]
[1732349101668,0.00101867,98176.0,98154.0,0.0454]
[1732349101870,0.00101867,98176.0,98155.0,0.00101866]
[1732349103478,0.00101867,98176.0,98155.0,0.07133235]
[1732349103753,0.10114867,98177.0,98155.0,0.03101866]
[1732349109404,0.10200897,98177.0,98155.0,0.03101866]
[1732349110250,0.0008606,98188.0,98123.0,0.002]
[1732349110251,0.1,98195.0,98129.0,0.0725]
[1732349110454,0.1,98195.0,98131.0,0.1309]
[1732349110669,0.05461026,98190.0,98137.0,0.0814]
[1732349110874,0.05461026,98190.0,98139.0,0.0814]
[1732349111096,0.1,98195.0,98140.0,0.00101858]
[1732349111360,0.1,98195.0,98149.0,0.1309]
[1732349111562,0.1,98195.0,98153.0,0.0814]
[1732349111766,0.05461026,98190.0,98156.0,0.0495]
[1732349111993,0.1,98195.0,98156.0,0.0495]
[1732349112204,0.1,98195.0,98159.0,0.0495]
[1732349112355,0.1,98195.0,98161.0,0.0495]
[1732349112564,0.1,98195.0,98162.0,0.00101858]
[1732349113169,0.0769,98189.0,98162.0,0.00101858]
[1732349113399,0.0461,98188.0,98162.0,0.00101858]
[1732349114115,0.0461,98188.0,98161.0,0.0495]
[1732349114317,0.0461,98186.0,98161.0,0.0495]
[1732349115720,0.0461,98186.0,98161.0,0.09029753]
[1732349117535,0.0461,98186.0,98162.0,0.00101858]
[1732349119866,0.0461,98186.0,98161.0,0.09029753]
[1732349120072,0.1263,98183.0,98161.0,0.04079753]
[1732349120300,0.0478,98180.0,98161.0,0.04079753]
[1732349120512,0.0478,98180.0,98156.0,0.0488]
[1732349121094,0.0478,98180.0,98161.0,0.0017202]
[1732349122158,0.03897112,98180.0,98161.0,0.0017202]
[1732349122347,0.09358138,98180.0,98161.0,0.0017202]
[1732349122553,0.05461026,98180.0,98161.0,0.0017202]
[1732349122799,0.0785,98179.0,98161.0,0.0017202]
[1732349125050,0.0461,98178.0,98161.0,0.0017202]
[1732349129367,0.0461,98178.0,98145.0,0.05]
[1732349129368,0.00101871,98177.0,98129.0,0.05023159]
[1732349129586,0.00101871,98177.0,98130.0,0.00101871]
[1732349129806,0.00101871,98177.0,98129.0,0.04049193]
[1732349130023,0.00101871,98177.0,98130.0,0.00101871]
[1732349130689,0.00101871,98177.0,98131.0,0.00800726]
[1732349130943,0.0053999,98178.0,98133.0,0.0475]
[1732349131186,0.0053999,98178.0,98135.0,0.0475]
[1732349131420,0.0053999,98178.0,98137.0,0.0475]
[1732349131646,0.0053999,98178.0,98139.0,0.0475]
[1732349131877,0.0053999,98178.0,98137.0,0.05024239]
[1732349131878,0.0053999,98178.0,98141.0,0.0475]
[1732349132096,0.0053999,98178.0,98143.0,0.0475]
[1732349132328,0.0053999,98178.0,98144.0,0.04851871]
[1732349132550,0.0053999,98178.0,98146.0,0.0475]
[1732349132783,0.0053999,98178.0,98147.0,0.04851871]
[1732349133968,0.0053999,98178.0,98148.0,0.0475]
[1732349134204,0.0754,98177.0,98149.0,0.04851871]
[1732349136955,0.0754,98177.0,98149.0,0.09006019]
[1732349137182,0.0754,98177.0,98150.0,0.0475]
[1732349137411,0.0754,98177.0,98152.0,0.0475]
[1732349137644,0.0754,98177.0,98153.0,0.00101871]
[1732349138318,0.0754,98177.0,98154.0,0.0475]
[1732349139241,0.0754,98177.0,98155.0,0.1291]
[1732349139474,0.0754,98177.0,98156.0,0.0495]
[1732349150908,0.02130235,98176.0,98156.0,0.0495]
[1732349151119,0.01514467,98176.0,98156.0,0.0495]
[1732349151998,0.1,98195.0,98159.0,0.0796]
[1732349152226,0.1,98192.0,98161.0,0.1291]
[1732349152439,0.1,98192.0,98166.0,0.0495]
[1732349152671,0.1,98192.0,98167.0,0.0495]
[1732349153964,0.023,98191.0,98167.0,0.0495]
[1732349155050,0.023,98191.0,98168.0,0.0495]
[1732349156031,0.023,98189.0,98168.0,0.0495]
[1732349159860,0.023,98187.0,98168.0,0.0495]
[1732349160498,0.023,98185.0,98168.0,0.0495]
[1732349160708,0.023,98185.0,98134.0,0.05071998]
[1732349160920,0.0812,98179.0,98137.0,0.05012942]
[1732349161126,0.0709,98178.0,98134.0,0.05055849]
[1732349163458,0.023,98176.0,98134.0,0.05055849]
[1732349163884,0.023,98176.0,98136.0,0.0831]
[1732349164094,0.023,98176.0,98138.0,0.047]
[1732349166074,0.023,98174.0,98138.0,0.047]
[1732349166708,0.023,98168.0,98138.0,0.047]
[1732349166900,0.023,98166.0,98138.0,0.047]
[1732349167395,0.023,98164.0,98138.0,0.047]
[1732349167618,0.05461026,98160.0,98138.0,0.047]
[1732349167836,0.1291,98165.0,98133.0,0.04210668]
[1732349167837,0.023,98158.0,98133.0,0.08910668]
[1732349168240,0.023,98156.0,98133.0,0.047]
[1732349169990,0.023,98156.0,98130.0,0.12656063]
[1732349169991,0.05461026,98150.0,98130.0,0.04346063]
[1732349170209,0.023,98147.0,98130.0,0.04346063]
[1732349170622,0.023,98145.0,98137.0,0.0008605]
[1732349171730,0.0769,98146.0,98137.0,0.0008605]
[1732349171731,0.023,98143.0,98137.0,0.0008605]
[1732349175814,0.01613217,98143.0,98137.0,0.0008605]
[1732349182922,0.01785317,98143.0,98137.0,0.0008605]
[1732349184789,0.001721,98143.0,98137.0,0.0008605]
[1732349185413,0.11642575,98144.0,98137.0,0.0008605]
[1732349186792,0.023,98143.0,98137.0,0.0008605]
[1732349188307,0.023,98143.0,98115.0,0.0500123]
[1732349188531,0.023,98143.0,98116.0,0.04119752]
[1732349188657,0.023,98143.0,98113.0,0.05089776]
[1732349189055,0.023,98141.0,98114.0,0.08188256]
[1732349189368,0.023,98141.0,98114.0,0.040578]
[1732349189760,0.023,98141.0,98098.0,0.1]
[1732349189959,0.023,98139.0,98114.0,0.05038795]
[1732349191299,0.023,98137.0,98115.0,0.0481]
[1732349192120,0.023,98135.0,98115.0,0.0481]
[1732349194339,0.0812,98136.0,98116.0,0.00101903]
[1732349194608,0.07149,98136.0,98116.0,0.00101903]
[1732349196201,0.07149,98136.0,98115.0,0.0481]
[1732349196785,0.07149,98136.0,98116.0,0.00101903]
[1732349197455,0.0463,98135.0,98115.0,0.0481]
[1732349198334,0.0463,98135.0,98114.0,0.04133365]
[1732349198877,0.04334694,98136.0,98114.0,0.04133365]
[1732349200651,0.0017214,98139.0,98114.0,0.04133365]
[1732349201967,0.0798,98138.0,98114.0,0.04133365]
[1732349202172,0.0798,98136.0,98114.0,0.04133365]
[1732349203054,0.0452,98135.0,98114.0,0.04133365]
[1732349203263,0.0798,98134.0,98114.0,0.04133365]
[1732349204741,0.1256,98133.0,98114.0,0.04133365]
[1732349205147,0.0758,98132.0,98114.0,0.04133365]
[1732349205897,0.0498,98131.0,98114.0,0.04133365]
[1732349206099,0.0758,98130.0,98114.0,0.04133365]
[1732349207835,0.01541282,98130.0,98114.0,0.04133365]
[1732349208678,0.01541282,98130.0,98115.0,0.0492]
[1732349213471,0.00402215,98130.0,98115.0,0.0492]
[1732349224454,0.0498,98131.0,98115.0,0.0492]
[1732349224889,0.02943983,98136.0,98115.0,0.0492]
[1732349225127,0.0017214,98139.0,98116.0,0.0774]
[1732349225342,0.0017214,98139.0,98117.0,0.0458]
[1732349225773,0.06219507,98150.0,98119.0,0.0458]
[1732349226019,0.06219507,98147.0,98120.0,0.0458]
[1732349226692,0.00101905,98146.0,98103.0,0.05090539]
[1732349226912,0.00101905,98146.0,98104.0,0.00101905]
[1732349227149,0.00101905,98146.0,98103.0,0.00101905]
[1732349228908,0.00101905,98146.0,98104.0,0.05014177]
[1732349229142,0.00101905,98146.0,98105.0,0.00101905]
[1732349229863,0.00101905,98146.0,98106.0,0.1232]
[1732349230086,0.0456,98145.0,98108.0,0.0458]
[1732349230342,0.00101905,98144.0,98110.0,0.0458]
[1732349230584,0.00101905,98144.0,98107.0,0.0774]
[1732349230585,0.0786,98143.0,98112.0,0.0458]
[1732349230804,0.00101905,98142.0,98113.0,0.00101905]
[1732349231251,0.0456,98141.0,98113.0,0.00101905]
[1732349231474,0.13422931,98140.0,98112.0,0.0458]
[1732349231699,0.0456,98139.0,98112.0,0.0458]
[1732349231917,0.00101905,98138.0,98112.0,0.0458]
[1732349232413,0.00101905,98138.0,98113.0,0.00101905]
[1732349232611,0.0786,98137.0,98113.0,0.00101905]
[1732349232839,0.00101905,98136.0,98112.0,0.0863002]
[1732349233758,0.00101905,98136.0,98113.0,0.00101906]
[1732349234967,0.0456,98135.0,98113.0,0.00101906]
[1732349235177,0.00101905,98134.0,98113.0,0.00101906]
[1732349236552,0.00101905,98134.0,98112.0,0.0863002]
[1732349236762,0.00101905,98134.0,98114.0,0.30752226]
[1732349236972,0.00101905,98134.0,98115.0,0.00101906]
[1732349238998,0.0772,98133.0,98115.0,0.00101906]
[1732349240971,0.07449958,98133.0,98115.0,0.00101906]
[1732349243404,0.0488,98132.0,98115.0,0.00101906]
[1732349244098,0.0772,98131.0,98115.0,0.00101906]
[1732349244313,0.0488,98123.0,98112.0,0.0405002]
[1732349244561,0.11099507,98115.0,98112.0,0.0405002]
[1732349244769,0.0488,98113.0,98092.0,0.3085193]
[1732349245024,0.07821905,98112.0,98103.0,0.04275047]
[1732349245196,0.0772,98110.0,98103.0,0.0008606]
[1732349245500,0.0772,98108.0,98103.0,0.00071635]
[1732349245716,0.0772,98106.0,98075.0,0.040603]
[1732349245949,0.05461026,98100.0,98075.0,0.040603]
[1732349246162,0.04981905,98099.0,98076.0,0.07125168]
[1732349246393,0.04981905,98099.0,98076.0,0.03]
[1732349246622,0.06798198,98099.0,98077.0,0.00101946]
[1732349246842,0.05461026,98090.0,98076.0,0.03]
[1732349247096,0.07821905,98089.0,98076.0,0.03]
[1732349249019,0.06219507,98085.0,98076.0,0.03]
[1732349249223,0.05461026,98086.0,98076.0,0.03]
[1732349249224,0.0772,98079.0,98076.0,0.03]
[1732349249436,0.00101905,98078.0,98076.0,0.03]
[1732349250377,0.08519507,98077.0,98076.0,0.03]
[1732349250599,0.08621412,98077.0,98076.0,0.03]
[1732349251067,0.0772,98059.0,98038.0,0.0008603]
[1732349251272,0.05461026,98050.0,98038.0,0.0008603]
[1732349251576,0.10341026,98050.0,98038.0,0.0008603]
[1732349251874,0.10341026,98050.0,98039.0,0.07319213]
[1732349252087,0.10341026,98050.0,98039.0,0.03252663]
[1732349252808,0.0488,98050.0,98039.0,0.03252663]
[1732349253246,0.06219507,98058.0,98039.0,0.03252663]
[1732349253482,0.06219507,98052.0,98039.0,0.03252663]
[1732349254346,0.06219507,98052.0,98039.0,0.07359472]
[1732349254770,0.06219507,98052.0,98039.0,0.03252663]